[Event "*** Titled Tuesday Blitz"]
[Site "Chess.com"]
[Date "2021.02.09"]
[Round "4"]
[White "AlexSuv"]
[Black "misterlamine"]
[Result "0-1"]
[WhiteElo "2441"]
[BlackElo "2286"]
[TimeControl "180+1"]
[EndTime "10:39:46 PST"]
[Termination "misterlamine won by resignation"]

1. d4 {[%clk 0:03:00.9]} 1... Nf6 {[%clk 0:02:42.9]} 2. c4 {[%clk 0:02:59.7]}
2... g6 {[%clk 0:02:39.1]} 3. Nc3 {[%clk 0:02:59.7]} 3... Bg7 {[%clk 0:02:33.3]}
4. Nf3 {[%clk 0:02:59.9]} 4... d6 {[%clk 0:02:26.4]} 5. e4 {[%clk 0:02:59.8]}
5... O-O {[%clk 0:02:11.9]} 6. Be2 {[%clk 0:02:58.1]} 6... Nbd7 {[%clk
0:02:10.4]} 7. O-O {[%clk 0:02:57.2]} 7... e5 {[%clk 0:02:04.1]} 8. Be3 {[%clk
0:02:56.9]} 8... h6 {[%clk 0:01:56.1]} 9. d5 {[%clk 0:02:11.4]} 9... Ng4 {[%clk
0:01:51.4]} 10. Bd2 {[%clk 0:02:11.1]} 10... f5 {[%clk 0:01:49.8]} 11. exf5
{[%clk 0:02:11.3]} 11... gxf5 {[%clk 0:01:46]} 12. g3 {[%clk 0:02:10]} 12... Nc5
{[%clk 0:00:52.5]} 13. Nh4 {[%clk 0:02:02.8]} 13... Nf6 {[%clk 0:00:48.5]} 14.
b4 {[%clk 0:01:58.7]} 14... Nce4 {[%clk 0:00:47.9]} 15. Be1 {[%clk 0:01:43.4]}
15... Nxc3 {[%clk 0:00:46.9]} 16. Bxc3 {[%clk 0:01:44.3]} 16... Ne4 {[%clk
0:00:46.3]} 17. Bb2 {[%clk 0:01:44]} 17... Ng5 {[%clk 0:00:46.5]} 18. Kh1 {[%clk
0:01:35.6]} 18... f4 {[%clk 0:00:46.4]} 19. Bg4 {[%clk 0:01:31]} 19... f3 {[%clk
0:00:46.4]} 20. Bxc8 {[%clk 0:01:15.8]} 20... Qxc8 {[%clk 0:00:47.3]} 21. Qc2
{[%clk 0:01:09]} 21... Qg4 {[%clk 0:00:44.6]} 22. Rae1 {[%clk 0:00:57.5]} 22...
Rf7 {[%clk 0:00:33.6]} 23. a3 {[%clk 0:00:46]} 23... Raf8 {[%clk 0:00:33.2]} 24.
c5 {[%clk 0:00:46.2]} 24... e4 {[%clk 0:00:20.6]} 25. Bxg7 {[%clk 0:00:39.4]}
25... Rxg7 {[%clk 0:00:21.5]} 26. cxd6 {[%clk 0:00:37.2]} 26... cxd6 {[%clk
0:00:22.4]} 27. Qc3 {[%clk 0:00:34.7]} 27... Rf4 {[%clk 0:00:18.3]} 28. Rc1
{[%clk 0:00:22]} 28... Qh3 {[%clk 0:00:16.5]} 29. Qc8+ {[%clk 0:00:20.3]} 29...
Kh7 {[%clk 0:00:16.5]} 30. Qxh3 {[%clk 0:00:18.8]} 30... Nxh3 {[%clk 0:00:17.4]}
31. Rc2 {[%clk 0:00:14.1]} 31... Rxh4 {[%clk 0:00:16.2]} 32. gxh4 {[%clk
0:00:14.5]} 32... Rg2 {[%clk 0:00:16.6]} 33. Re1 {[%clk 0:00:05.2]} 33... Nxf2+
{[%clk 0:00:15.5]} 34. Rxf2 {[%clk 0:00:05.3]} 34... Rxf2 {[%clk 0:00:16.4]} 35.
Kg1 {[%clk 0:00:05.9]} 35... Re2 {[%clk 0:00:15.1]} 36. Rxe2 {[%clk 0:00:05.6]}
36... fxe2 {[%clk 0:00:16]} 37. Kf2 {[%clk 0:00:06.2]} 37... Kg6 {[%clk
0:00:16.7]} 38. Kxe2 {[%clk 0:00:06.7]} 38... Kf5 {[%clk 0:00:17.6]} 39. Ke3
{[%clk 0:00:05.2]} 39... Ke5 {[%clk 0:00:18.5]} 40. h5 {[%clk 0:00:05.3]} 40...
Kxd5 {[%clk 0:00:19.4]} 41. Kf4 {[%clk 0:00:06]} 41... Kd4 {[%clk 0:00:19.7]}
42. Kf5 {[%clk 0:00:06.6]} 42... e3 {[%clk 0:00:20.6]} 43. Kg6 {[%clk
0:00:07.5]} 43... e2 {[%clk 0:00:21.3]} 44. Kxh6 {[%clk 0:00:08.4]} 44... e1=Q
{[%clk 0:00:21.2]} 45. Kg6 {[%clk 0:00:09.3]} 45... Qe6+ {[%clk 0:00:21.5]} 46.
Kg7 {[%clk 0:00:09.6]} 46... Ke5 {[%clk 0:00:22.4]} 47. h6 {[%clk 0:00:10.1]}
47... Qf6+ {[%clk 0:00:23.1]} 48. Kh7 {[%clk 0:00:10.1]} 48... Kf5 {[%clk
0:00:23.6]} 49. h4 {[%clk 0:00:10]} 49... Qg6+ {[%clk 0:00:23.8]} 50. Kh8 {[%clk
0:00:09.9]} 50... Qxh6+ {[%clk 0:00:24.7]} 0-1

[Event "*** Titled Tuesday Blitz"]
[Site "Chess.com"]
[Date "2021.02.09"]
[Round "4"]
[White "BahadirOzen"]
[Black "NMJeevanK"]
[Result "1-0"]
[WhiteElo "2727"]
[BlackElo "2511"]
[TimeControl "180+1"]
[EndTime "10:39:52 PST"]
[Termination "BahadirOzen won by resignation"]

1. g3 {[%clk 0:03:00.9]} 1... Nf6 {[%clk 0:03:00.3]} 2. Bg2 {[%clk 0:03:01.1]}
2... d5 {[%clk 0:03:01]} 3. d3 {[%clk 0:03:01.2]} 3... e5 {[%clk 0:03:01.3]} 4.
Nf3 {[%clk 0:03:01.3]} 4... Bd6 {[%clk 0:03:01.6]} 5. O-O {[%clk 0:03:01.2]}
5... c6 {[%clk 0:03:02.3]} 6. Nbd2 {[%clk 0:03:01.6]} 6... O-O {[%clk 0:03:02]}
7. e4 {[%clk 0:03:02.1]} 7... Nbd7 {[%clk 0:03:02.7]} 8. Re1 {[%clk 0:03:01.8]}
8... Re8 {[%clk 0:03:02.6]} 9. b3 {[%clk 0:03:01.5]} 9... Qc7 {[%clk 0:03:01.1]}
10. Bb2 {[%clk 0:03:01.6]} 10... b6 {[%clk 0:03:00.5]} 11. d4 {[%clk 0:02:39.7]}
11... dxe4 {[%clk 0:02:46]} 12. Nxe5 {[%clk 0:02:29]} 12... Nxe5 {[%clk
0:02:35.3]} 13. dxe5 {[%clk 0:02:29.9]} 13... Bxe5 {[%clk 0:02:35.9]} 14. Bxe5
{[%clk 0:02:29.9]} 14... Rxe5 {[%clk 0:02:36.8]} 15. Nxe4 {[%clk 0:02:29.4]}
15... Nxe4 {[%clk 0:02:32.8]} 16. Rxe4 {[%clk 0:02:11]} 16... Bf5 {[%clk
0:01:55]} 17. Rxe5 {[%clk 0:01:37.5]} 17... Qxe5 {[%clk 0:01:55.9]} 18. Qe1
{[%clk 0:01:37.2]} 18... Qf6 {[%clk 0:01:48.3]} 19. Rd1 {[%clk 0:01:30.4]} 19...
Rf8 {[%clk 0:01:30.5]} 20. h3 {[%clk 0:01:16.7]} 20... c5 {[%clk 0:01:25.5]} 21.
Qd2 {[%clk 0:01:05.9]} 21... Qb2 {[%clk 0:01:14.6]} 22. c3 {[%clk 0:00:59.2]}
22... Qa3 {[%clk 0:01:03.6]} 23. Re1 {[%clk 0:00:46.3]} 23... Be6 {[%clk
0:00:55.4]} 24. f4 {[%clk 0:00:30.4]} 24... c4 {[%clk 0:00:40.7]} 25. b4 {[%clk
0:00:30.3]} 25... a5 {[%clk 0:00:40.7]} 26. bxa5 {[%clk 0:00:30.5]} 26... Qxa5
{[%clk 0:00:39.7]} 27. g4 {[%clk 0:00:30.4]} 27... g6 {[%clk 0:00:28.2]} 28. Re2
{[%clk 0:00:25.4]} 28... Qc5+ {[%clk 0:00:21.6]} 29. Kh2 {[%clk 0:00:25]} 29...
Qc7 {[%clk 0:00:19.3]} 30. Kh1 {[%clk 0:00:23.7]} 30... Rd8 {[%clk 0:00:19.5]}
31. Qe1 {[%clk 0:00:19.6]} 31... Qxf4 {[%clk 0:00:18.4]} 32. Rb2 {[%clk
0:00:11.2]} 32... Qc7 {[%clk 0:00:16.1]} 33. Qf2 {[%clk 0:00:09.5]} 33... Rd6
{[%clk 0:00:16.6]} 34. Rd2 {[%clk 0:00:08.8]} 34... Qd8 {[%clk 0:00:15.8]} 35.
Rxd6 {[%clk 0:00:08.6]} 35... Qxd6 {[%clk 0:00:16.7]} 36. Qe3 {[%clk 0:00:07.1]}
36... b5 {[%clk 0:00:12.9]} 37. g5 {[%clk 0:00:07.2]} 37... Qa3 {[%clk
0:00:09.9]} 38. Qd4 {[%clk 0:00:06.8]} 38... Qe7 {[%clk 0:00:06.6]} 39. h4
{[%clk 0:00:06.7]} 39... Bf5 {[%clk 0:00:04.7]} 40. Kh2 {[%clk 0:00:06.8]} 40...
Qe8 {[%clk 0:00:04.7]} 41. Qd6 {[%clk 0:00:06.1]} 41... Bd7 {[%clk 0:00:04]} 42.
Bd5 {[%clk 0:00:05.2]} 42... Qd8 {[%clk 0:00:02.6]} 43. Bc6 {[%clk 0:00:04]}
43... Qb8 {[%clk 0:00:01.3]} 44. Qxb8+ {[%clk 0:00:03.9]} 1-0

[Event "*** Titled Tuesday Blitz"]
[Site "Chess.com"]
[Date "2021.02.09"]
[Round "4"]
[White "Chessmasterzt"]
[Black "verdest"]
[Result "0-1"]
[WhiteElo "2610"]
[BlackElo "2484"]
[TimeControl "180+1"]
[EndTime "10:39:52 PST"]
[Termination "verdest won on time"]

1. d4 {[%clk 0:03:00.9]} 1... Nf6 {[%clk 0:02:59.8]} 2. c4 {[%clk 0:03:01.2]}
2... e6 {[%clk 0:03:00]} 3. g3 {[%clk 0:03:01.4]} 3... d5 {[%clk 0:03:00.9]} 4.
Bg2 {[%clk 0:03:01.8]} 4... Bb4+ {[%clk 0:03:01.4]} 5. Nd2 {[%clk 0:03:00.8]}
5... O-O {[%clk 0:03:00.4]} 6. Nf3 {[%clk 0:03:00.9]} 6... b6 {[%clk 0:02:56.4]}
7. O-O {[%clk 0:02:57.9]} 7... Bb7 {[%clk 0:02:56.4]} 8. Ne5 {[%clk 0:02:55.8]}
8... Re8 {[%clk 0:02:55.4]} 9. Qc2 {[%clk 0:02:29.5]} 9... Bf8 {[%clk
0:02:47.5]} 10. Rd1 {[%clk 0:02:13.5]} 10... Nbd7 {[%clk 0:02:45.2]} 11. e4
{[%clk 0:01:58.8]} 11... dxe4 {[%clk 0:02:39.8]} 12. Nxe4 {[%clk 0:01:58.3]}
12... Nxe4 {[%clk 0:02:32.3]} 13. Bxe4 {[%clk 0:01:56.9]} 13... Bxe4 {[%clk
0:02:31.5]} 14. Qxe4 {[%clk 0:01:57.8]} 14... Nxe5 {[%clk 0:02:31.8]} 15. Qxe5
{[%clk 0:01:56.6]} 15... Qd6 {[%clk 0:02:29.7]} 16. Qxd6 {[%clk 0:01:31.5]}
16... cxd6 {[%clk 0:02:27.8]} 17. d5 {[%clk 0:01:21.7]} 17... Rac8 {[%clk
0:02:26.6]} 18. dxe6 {[%clk 0:01:17.3]} 18... fxe6 {[%clk 0:02:12.5]} 19. b3
{[%clk 0:01:15.2]} 19... a6 {[%clk 0:02:08.6]} 20. Bf4 {[%clk 0:01:12.4]} 20...
e5 {[%clk 0:02:01.4]} 21. Be3 {[%clk 0:01:12.8]} 21... b5 {[%clk 0:02:01.3]} 22.
cxb5 {[%clk 0:01:11.8]} 22... axb5 {[%clk 0:02:02.2]} 23. a4 {[%clk 0:01:10.7]}
23... bxa4 {[%clk 0:01:58]} 24. bxa4 {[%clk 0:01:11.6]} 24... e4 {[%clk
0:01:58]} 25. Rd5 {[%clk 0:00:56.8]} 25... g6 {[%clk 0:01:50.2]} 26. a5 {[%clk
0:00:56.2]} 26... Bg7 {[%clk 0:01:50]} 27. Ra2 {[%clk 0:00:55.4]} 27... Be5
{[%clk 0:01:37.7]} 28. Ra4 {[%clk 0:00:54.5]} 28... Kf7 {[%clk 0:01:21.2]} 29.
Rxe4 {[%clk 0:00:48.4]} 29... Ke6 {[%clk 0:01:20.8]} 30. Rb5 {[%clk 0:00:48.9]}
30... d5 {[%clk 0:01:18.4]} 31. Ra4 {[%clk 0:00:42.9]} 31... Red8 {[%clk
0:01:10.2]} 32. Rb6+ {[%clk 0:00:18.6]} 32... Kf7 {[%clk 0:00:55.4]} 33. Rb7+
{[%clk 0:00:17.2]} 33... Ke6 {[%clk 0:00:54.3]} 34. Rxh7 {[%clk 0:00:10.3]}
34... d4 {[%clk 0:00:54.6]} 35. Bg5 {[%clk 0:00:10.4]} 35... d3 {[%clk
0:00:54.1]} 36. Ra2 {[%clk 0:00:02.5]} 36... Rd5 {[%clk 0:00:46.6]} 37. Bd2
{[%clk 0:00:01.7]} 37... Rc2 {[%clk 0:00:46.3]} 38. Rxc2 {[%clk 0:00:01.1]}
38... dxc2 {[%clk 0:00:47.2]} 39. Be3 {[%clk 0:00:01.5]} 39... Rd1+ {[%clk
0:00:42.7]} 40. Kg2 {[%clk 0:00:02]} 40... Bd4 {[%clk 0:00:43]} 41. Bf4 {[%clk
0:00:01.9]} 41... Be5 {[%clk 0:00:37]} 42. Be3 {[%clk 0:00:01.9]} 42... Bd4
{[%clk 0:00:30.3]} 43. Bf4 {[%clk 0:00:01.7]} 43... c1=Q {[%clk 0:00:25.8]} 44.
Bxc1 {[%clk 0:00:01.8]} 44... Rxc1 {[%clk 0:00:26.7]} 45. a6 {[%clk 0:00:01.7]}
45... Rc2 {[%clk 0:00:26.3]} 46. h4 {[%clk 0:00:01]} 46... Rxf2+ {[%clk
0:00:26.2]} 47. Kh3 {[%clk 0:00:01.9]} 47... Ra2 {[%clk 0:00:26]} 48. a7 {[%clk
0:00:02.8]} 48... Rxa7 {[%clk 0:00:25.4]} 49. h5 {[%clk 0:00:03.7]} 49... Rxh7
{[%clk 0:00:24.6]} 0-1

[Event "*** Titled Tuesday Blitz"]
[Site "Chess.com"]
[Date "2021.02.09"]
[Round "4"]
[White "ega2006"]
[Black "mr65"]
[Result "1-0"]
[WhiteElo "2398"]
[BlackElo "2111"]
[TimeControl "180+1"]
[EndTime "10:39:52 PST"]
[Termination "ega2006 won on time"]

1. e4 {[%clk 0:03:00.9]} 1... e5 {[%clk 0:02:59]} 2. Nf3 {[%clk 0:03:00.2]} 2...
Nc6 {[%clk 0:02:58.9]} 3. Bc4 {[%clk 0:03:00.2]} 3... Nf6 {[%clk 0:02:58.4]} 4.
d3 {[%clk 0:02:59.3]} 4... Bc5 {[%clk 0:02:57.3]} 5. O-O {[%clk 0:02:58.5]} 5...
h6 {[%clk 0:02:55.9]} 6. Re1 {[%clk 0:02:58.1]} 6... O-O {[%clk 0:02:54]} 7. c3
{[%clk 0:02:56]} 7... d5 {[%clk 0:02:46]} 8. exd5 {[%clk 0:02:56]} 8... Nxd5
{[%clk 0:02:45.5]} 9. a4 {[%clk 0:02:53]} 9... Nb6 {[%clk 0:02:39.6]} 10. Bb5
{[%clk 0:02:50.5]} 10... Bd7 {[%clk 0:02:26.9]} 11. a5 {[%clk 0:02:47.9]} 11...
Nd5 {[%clk 0:02:20.7]} 12. Nbd2 {[%clk 0:02:18.2]} 12... Bd6 {[%clk 0:02:15.8]}
13. Ne4 {[%clk 0:02:16.5]} 13... Nf4 {[%clk 0:02:09.7]} 14. Nxd6 {[%clk
0:02:12.7]} 14... cxd6 {[%clk 0:02:08.5]} 15. d4 {[%clk 0:02:12.4]} 15... Qc7
{[%clk 0:01:49.5]} 16. Bxf4 {[%clk 0:02:00.2]} 16... exf4 {[%clk 0:01:48.4]} 17.
Qd2 {[%clk 0:01:48.8]} 17... d5 {[%clk 0:01:45.3]} 18. Bxc6 {[%clk 0:01:34]}
18... bxc6 {[%clk 0:01:43.3]} 19. Ne5 {[%clk 0:01:34.1]} 19... g5 {[%clk
0:01:29.9]} 20. Qd3 {[%clk 0:01:07.6]} 20... Be6 {[%clk 0:01:07.1]} 21. g3
{[%clk 0:01:03.5]} 21... fxg3 {[%clk 0:01:05.2]} 22. hxg3 {[%clk 0:01:04.4]}
22... c5 {[%clk 0:00:51.3]} 23. dxc5 {[%clk 0:00:54.6]} 23... Qxc5 {[%clk
0:00:48.7]} 24. Nf3 {[%clk 0:00:55.1]} 24... Qc4 {[%clk 0:00:41.1]} 25. Qxc4
{[%clk 0:00:41.4]} 25... dxc4 {[%clk 0:00:40.2]} 26. Nd4 {[%clk 0:00:40.6]}
26... Rab8 {[%clk 0:00:36.8]} 27. Re2 {[%clk 0:00:28.6]} 27... Bd5 {[%clk
0:00:32.9]} 28. f3 {[%clk 0:00:24]} 28... Kh7 {[%clk 0:00:18]} 29. a6 {[%clk
0:00:23.2]} 29... Kg6 {[%clk 0:00:16.1]} 30. Ra5 {[%clk 0:00:23]} 30... Be6
{[%clk 0:00:12.1]} 31. Rc5 {[%clk 0:00:08.8]} 31... h5 {[%clk 0:00:09.6]} 32.
Kg2 {[%clk 0:00:08.5]} 32... h4 {[%clk 0:00:08.9]} 33. Nxe6 {[%clk 0:00:08.3]}
33... fxe6 {[%clk 0:00:08.1]} 34. Rxc4 {[%clk 0:00:07.6]} 34... h3+ {[%clk
0:00:07.1]} 35. Kxh3 {[%clk 0:00:06.1]} 35... Rxf3 {[%clk 0:00:06.6]} 36. Rxe6+
{[%clk 0:00:04.8]} 36... Rf6 {[%clk 0:00:05.8]} 37. Rxf6+ {[%clk 0:00:04.8]}
37... Kxf6 {[%clk 0:00:05.3]} 38. Kg4 {[%clk 0:00:04.8]} 38... Rxb2 {[%clk
0:00:04]} 39. Rc6+ {[%clk 0:00:04.8]} 39... Kf7 {[%clk 0:00:03.4]} 40. Kxg5
{[%clk 0:00:04.5]} 40... Rb5+ {[%clk 0:00:02.3]} 41. Kh4 {[%clk 0:00:03.5]} 1-0

[Event "*** Titled Tuesday Blitz"]
[Site "Chess.com"]
[Date "2021.02.09"]
[Round "4"]
[White "FlySooHigh"]
[Black "korkmaz16"]
[Result "1-0"]
[WhiteElo "2583"]
[BlackElo "2409"]
[TimeControl "180+1"]
[EndTime "10:39:53 PST"]
[Termination "FlySooHigh won by resignation"]

1. e4 {[%clk 0:03:00.9]} 1... e6 {[%clk 0:02:57.3]} 2. d4 {[%clk 0:03:00.3]}
2... d5 {[%clk 0:02:57.7]} 3. e5 {[%clk 0:03:00.9]} 3... c5 {[%clk 0:02:57.1]}
4. c3 {[%clk 0:03:01.5]} 4... Nc6 {[%clk 0:02:57.2]} 5. Nf3 {[%clk 0:03:02]}
5... Qb6 {[%clk 0:02:57.3]} 6. a3 {[%clk 0:03:02.4]} 6... Nh6 {[%clk 0:02:56.9]}
7. b4 {[%clk 0:03:01.9]} 7... cxd4 {[%clk 0:02:57.1]} 8. cxd4 {[%clk 0:03:02.2]}
8... Nf5 {[%clk 0:02:57.7]} 9. Bb2 {[%clk 0:03:01.2]} 9... Bd7 {[%clk
0:02:56.7]} 10. g4 {[%clk 0:02:58.3]} 10... Nfe7 {[%clk 0:02:55.7]} 11. Nc3
{[%clk 0:02:42.3]} 11... Na5 {[%clk 0:02:40.7]} 12. Na4 {[%clk 0:02:42]} 12...
Qc6 {[%clk 0:02:38.6]} 13. bxa5 {[%clk 0:02:06.9]} 13... Qxa4 {[%clk 0:02:38]}
14. Qxa4 {[%clk 0:02:07.3]} 14... Bxa4 {[%clk 0:02:38]} 15. Bc3 {[%clk
0:02:05.7]} 15... Nc6 {[%clk 0:02:02.5]} 16. Bd3 {[%clk 0:01:57.7]} 16... Be7
{[%clk 0:01:50]} 17. Kd2 {[%clk 0:01:53.9]} 17... Bd8 {[%clk 0:01:49.2]} 18.
Rab1 {[%clk 0:01:49.7]} 18... Nxa5 {[%clk 0:01:48.3]} 19. Ke3 {[%clk 0:01:37.9]}
19... Bc6 {[%clk 0:01:46.7]} 20. Nd2 {[%clk 0:01:32.9]} 20... Nc4+ {[%clk
0:01:43.6]} 21. Nxc4 {[%clk 0:01:28.1]} 21... dxc4 {[%clk 0:01:43.3]} 22. Be4
{[%clk 0:01:29]} 22... Bxe4 {[%clk 0:01:38.3]} 23. Kxe4 {[%clk 0:01:29.9]} 23...
b6 {[%clk 0:01:38.8]} 24. d5 {[%clk 0:01:15.5]} 24... exd5+ {[%clk 0:01:35.5]}
25. Kxd5 {[%clk 0:01:16.4]} 25... Rc8 {[%clk 0:01:35.6]} 26. Rb4 {[%clk
0:01:13.3]} 26... Be7 {[%clk 0:00:28.7]} 27. Rxc4 {[%clk 0:01:11.7]} 27... Kd7
{[%clk 0:00:29.2]} 28. a4 {[%clk 0:00:57.1]} 28... Rxc4 {[%clk 0:00:28.1]} 29.
Kxc4 {[%clk 0:00:58]} 29... Rc8+ {[%clk 0:00:28.3]} 30. Kd3 {[%clk 0:00:57.5]}
30... Rc5 {[%clk 0:00:27.6]} 31. f4 {[%clk 0:00:55.9]} 31... Rd5+ {[%clk
0:00:27.9]} 32. Ke4 {[%clk 0:00:55.6]} 32... Rc5 {[%clk 0:00:28.4]} 33. Rd1+
{[%clk 0:00:48.7]} 33... Kc6 {[%clk 0:00:28.5]} 34. Be1 {[%clk 0:00:32.3]} 34...
Rc4+ {[%clk 0:00:28.1]} 35. Rd4 {[%clk 0:00:32.5]} 35... Kc5 {[%clk 0:00:23.3]}
36. Rxc4+ {[%clk 0:00:24.7]} 36... Kxc4 {[%clk 0:00:23.4]} 37. f5 {[%clk
0:00:24.6]} 37... g6 {[%clk 0:00:23.9]} 38. e6 {[%clk 0:00:23.3]} 38... gxf5+
{[%clk 0:00:22.3]} 39. gxf5 {[%clk 0:00:24.2]} 39... fxe6 {[%clk 0:00:22.9]} 40.
fxe6 {[%clk 0:00:25]} 40... Kb3 {[%clk 0:00:22.9]} 41. a5 {[%clk 0:00:24.3]}
41... bxa5 {[%clk 0:00:22.2]} 42. Bxa5 {[%clk 0:00:23.8]} 42... Ka4 {[%clk
0:00:22.9]} 43. Bc7 {[%clk 0:00:21.7]} 43... a5 {[%clk 0:00:22.6]} 44. Kd5
{[%clk 0:00:22.3]} 44... Kb5 {[%clk 0:00:22.6]} 45. Bd6 {[%clk 0:00:22.9]} 45...
Bh4 {[%clk 0:00:20.7]} 46. e7 {[%clk 0:00:22.9]} 46... Bxe7 {[%clk 0:00:20.7]}
47. Bxe7 {[%clk 0:00:23.8]} 47... h5 {[%clk 0:00:20.3]} 48. h4 {[%clk
0:00:23.4]} 48... a4 {[%clk 0:00:20.5]} 49. Ke5 {[%clk 0:00:23.6]} 49... Kc4
{[%clk 0:00:21]} 50. Kf5 {[%clk 0:00:23.9]} 50... Kb3 {[%clk 0:00:21.9]} 51. Kg5
{[%clk 0:00:23.9]} 51... a3 {[%clk 0:00:22.8]} 52. Bxa3 {[%clk 0:00:24.2]} 52...
Kxa3 {[%clk 0:00:22.9]} 53. Kxh5 {[%clk 0:00:25.1]} 53... Kb4 {[%clk 0:00:23.8]}
54. Kg6 {[%clk 0:00:26]} 54... Kc5 {[%clk 0:00:24.7]} 55. h5 {[%clk 0:00:26.7]}
55... Kd6 {[%clk 0:00:25.6]} 56. h6 {[%clk 0:00:27.6]} 56... Ke7 {[%clk
0:00:26.2]} 57. h7 {[%clk 0:00:28.3]} 57... Kf8 {[%clk 0:00:27.1]} 58. h8=Q+
{[%clk 0:00:29]} 58... Ke7 {[%clk 0:00:28]} 59. Qf6+ {[%clk 0:00:29.2]} 1-0

[Event "*** Titled Tuesday Blitz"]
[Site "Chess.com"]
[Date "2021.02.09"]
[Round "4"]
[White "PowerThinking2650"]
[Black "Piccadilly123"]
[Result "1/2-1/2"]
[WhiteElo "2397"]
[BlackElo "2191"]
[TimeControl "180+1"]
[EndTime "10:39:53 PST"]
[Termination "Game drawn by agreement"]

1. e4 {[%clk 0:03:00.9]} 1... e6 {[%clk 0:02:59.5]} 2. d4 {[%clk 0:03:00.3]}
2... d5 {[%clk 0:03:00.1]} 3. Nd2 {[%clk 0:03:00.8]} 3... c5 {[%clk 0:02:56.7]}
4. Ngf3 {[%clk 0:02:59.8]} 4... Nc6 {[%clk 0:02:49.2]} 5. exd5 {[%clk
0:02:59.6]} 5... exd5 {[%clk 0:02:49.2]} 6. Bb5 {[%clk 0:03:00.2]} 6... Bd6
{[%clk 0:02:48.2]} 7. O-O {[%clk 0:03:00.1]} 7... Ne7 {[%clk 0:02:48.6]} 8. dxc5
{[%clk 0:03:00.4]} 8... Bxc5 {[%clk 0:02:48.7]} 9. Nb3 {[%clk 0:02:59.7]} 9...
Bb6 {[%clk 0:02:47.5]} 10. Bd3 {[%clk 0:02:57.3]} 10... O-O {[%clk 0:02:45.9]}
11. Re1 {[%clk 0:02:56.9]} 11... Qd6 {[%clk 0:02:36.8]} 12. Bg5 {[%clk
0:02:50.5]} 12... h6 {[%clk 0:02:33.9]} 13. Bh4 {[%clk 0:02:50.1]} 13... Bg4
{[%clk 0:02:31.3]} 14. Bg3 {[%clk 0:02:49.8]} 14... Qf6 {[%clk 0:02:27.3]} 15.
c3 {[%clk 0:02:42.1]} 15... Rad8 {[%clk 0:02:07.3]} 16. Nbd2 {[%clk 0:02:35.6]}
16... Nf5 {[%clk 0:01:58.1]} 17. Qc2 {[%clk 0:02:14.9]} 17... Nxg3 {[%clk
0:01:53.5]} 18. hxg3 {[%clk 0:02:15.8]} 18... d4 {[%clk 0:01:52.5]} 19. Ne4
{[%clk 0:02:08.9]} 19... Qe7 {[%clk 0:01:36.2]} 20. Neg5 {[%clk 0:01:49.7]}
20... Qd7 {[%clk 0:01:35.4]} 21. Nh3 {[%clk 0:01:13.5]} 21... dxc3 {[%clk
0:01:29.2]} 22. Bh7+ {[%clk 0:01:13.4]} 22... Kh8 {[%clk 0:01:28.8]} 23. bxc3
{[%clk 0:01:13.6]} 23... Bxf3 {[%clk 0:01:23.4]} 24. Bf5 {[%clk 0:01:13.6]}
24... Qd5 {[%clk 0:01:10.9]} 25. gxf3 {[%clk 0:01:12.7]} 25... Qxf3 {[%clk
0:01:10.6]} 26. Kh2 {[%clk 0:01:06.1]} 26... Rfe8 {[%clk 0:01:05.9]} 27. Be4
{[%clk 0:00:53.5]} 27... Qf6 {[%clk 0:01:00.4]} 28. Nf4 {[%clk 0:00:50.4]} 28...
Ne5 {[%clk 0:00:50.7]} 29. f3 {[%clk 0:00:44.9]} 29... Rd7 {[%clk 0:00:28.2]}
30. Rad1 {[%clk 0:00:36.5]} 30... Red8 {[%clk 0:00:28.4]} 31. Rxd7 {[%clk
0:00:34]} 31... Rxd7 {[%clk 0:00:29.3]} 32. Rd1 {[%clk 0:00:32]} 32... Qe7
{[%clk 0:00:24.8]} 33. Rxd7 {[%clk 0:00:28.1]} 33... Qxd7 {[%clk 0:00:25.7]} 34.
Nd5 {[%clk 0:00:28.6]} 34... g6 {[%clk 0:00:20.3]} 35. Kg2 {[%clk 0:00:21.3]}
35... Kg7 {[%clk 0:00:19.8]} 36. f4 {[%clk 0:00:18.4]} 36... Nc4 {[%clk
0:00:19.9]} 37. Qd3 {[%clk 0:00:17.8]} 37... Ne3+ {[%clk 0:00:16.3]} 38. Kf3
{[%clk 0:00:17.3]} 38... Nxd5 {[%clk 0:00:14.3]} 39. Qxd5 {[%clk 0:00:15.5]}
39... Qxd5 {[%clk 0:00:12.7]} 40. Bxd5 {[%clk 0:00:16.4]} 40... Kf6 {[%clk
0:00:12.6]} 41. Bxb7 {[%clk 0:00:16.6]} 41... Ke6 {[%clk 0:00:12.2]} 42. c4
{[%clk 0:00:15.7]} 42... h5 {[%clk 0:00:12.1]} 43. Bd5+ {[%clk 0:00:15.8]} 43...
Ke7 {[%clk 0:00:11.5]} 44. Ke4 {[%clk 0:00:15.6]} 44... f6 {[%clk 0:00:10.6]}
45. f5 {[%clk 0:00:15.6]} 45... gxf5+ {[%clk 0:00:09.4]} 46. Kxf5 {[%clk
0:00:15.7]} 46... Bd4 {[%clk 0:00:09.6]} 47. Bf3 {[%clk 0:00:15.1]} 47... Be5
{[%clk 0:00:09.4]} 48. Bxh5 {[%clk 0:00:13.9]} 48... Bxg3 {[%clk 0:00:09.8]} 49.
Bf3 {[%clk 0:00:14.7]} 49... Be5 {[%clk 0:00:09.9]} 50. Bd5 {[%clk 0:00:15]}
50... Kd6 {[%clk 0:00:10]} 51. Ke4 {[%clk 0:00:15.3]} 51... Kc5 {[%clk
0:00:10.5]} 52. Kf5 {[%clk 0:00:15.7]} 52... Kd4 {[%clk 0:00:10.3]} 1/2-1/2